fUSD/lending_fUSD_20250513
["ID","MTS","AMOUNT","RATE_DAILY","PERIOD"]
[360944564,1747159875730,-1207.49,0.0001178,2]
[360944565,1747159875739,-400.0,0.0001178,2]
[360944566,1747159875749,-445.37090555,0.0001178,2]
[360944567,1747159875758,-400.0,0.0001178,2]
[360944568,1747159875767,-400.0,0.0001178,2]
[360944569,1747159875776,-400.0,0.0001178,2]
[360944570,1747159875786,-400.0,0.0001178,2]
[360944571,1747159875795,-151.0,0.0001178,2]
[360944572,1747159875806,-400.0,0.0001178,2]
[360944573,1747159875815,-426.356592,0.0001178,2]
[360944574,1747159875824,-1135.76,0.0001178,2]
[360944575,1747159875834,-400.0,0.0001178,2]
[360944576,1747159875843,-1233.2,0.0001178,2]
[360944577,1747159875852,-657.57,0.0001178,2]
[360944578,1747159875862,-400.0,0.0001178,2]
[360944579,1747159875871,-726.64,0.0001178,2]
[360944580,1747159875880,-400.0,0.0001178,2]
[360944581,1747159875890,-529.97,0.0001178,2]
[360944582,1747159875899,-1268.75,0.0001178,2]
[360944583,1747159875908,-400.0,0.0001178,2]
[360944584,1747159875917,-400.0,0.0001178,2]
[360944585,1747159875927,-608.84,0.0001178,2]
[360944586,1747159875937,-400.0,0.0001178,2]
[360944587,1747159875946,-179.529597,0.0001178,2]
[360944588,1747159875955,-3023.021796,0.0001178,2]
[360944589,1747159875966,-457.91,0.0001178,2]
[360944590,1747159875976,-7701.691241,0.0001178,2]
[360944591,1747159875986,-416.03,0.0001178,2]
[360944592,1747159875996,-995.85,0.0001178,2]
[360944593,1747159876007,-3023.021796,0.0001178,2]
[360944594,1747159876016,-291.987093,0.0001178,2]
[360944595,1747159876025,-736.58,0.0001178,2]
[360944596,1747159876035,-620.613762,0.0001178,2]
[360944597,1747159876044,-400.0,0.0001178,2]
[360944598,1747159876055,-411.21,0.0001178,2]
[360944599,1747159876064,-620.613762,0.0001178,2]
[360944600,1747159876075,-151.0,0.0001178,2]
[360944601,1747159876084,-553.17,0.0001178,2]
[360944602,1747159876094,-400.0,0.0001178,2]
[360944603,1747159876104,-2771.94,0.0001178,2]
[360944604,1747159876114,-4041.915108,0.0001178,2]
[360944605,1747159876124,-4041.915108,0.0001178,2]
[360944606,1747159876134,-400.0,0.0001178,2]
[360944607,1747159876143,-400.0,0.0001178,2]
[360944608,1747159876153,-400.0,0.0001178,2]
[360944609,1747159876165,-547.99,0.0001178,2]
[360944610,1747159876174,-2640.23,0.0001178,2]
[360944611,1747159876184,-1191.42,0.0001178,2]
[360944612,1747159876193,-400.0,0.0001178,2]
[360944613,1747159876203,-400.0,0.0001178,2]
[360944614,1747159876218,-400.0,0.0001178,2]
[360944615,1747159876227,-1798.17,0.0001178,2]
[360944616,1747159876238,-400.0,0.0001178,2]
[360944617,1747159876247,-3074.15,0.0001178,2]
[360944618,1747159876256,-1909.44,0.0001178,2]
[360944619,1747159876265,-1043.95,0.0001178,2]
[360944620,1747159876275,-400.0,0.0001178,2]
[360944621,1747159876284,-828.17,0.0001178,2]
[360944622,1747159876293,-2209.39,0.0001178,2]
[360944623,1747159876303,-400.0,0.0001178,2]
[360944624,1747159876313,-2113.1,0.0001178,2]
[360944625,1747159876324,-462.98212216,0.0001178,2]
[360944626,1747159876333,-1584.79,0.0001178,2]
[360944627,1747159876342,-894.32,0.0001178,2]
[360944628,1747159876351,-2266.23,0.0001178,2]
[360944629,1747159876361,-400.0,0.0001178,2]
[360944630,1747159876370,-403.62,0.0001178,2]
[360944631,1747159876379,-400.0,0.0001178,2]
[360944632,1747159876389,-400.0,0.0001178,2]
[360944633,1747159876399,-400.0,0.0001178,2]
[360944634,1747159876408,-1157.78,0.0001178,2]
[360944635,1747159876417,-448.59,0.0001178,2]
[360944636,1747159876426,-2334.67,0.0001178,2]
[360944637,1747159876436,-2166.25,0.0001178,2]
[360944638,1747159876446,-3592.14,0.0001178,2]
[360944639,1747159876455,-414.75,0.0001178,2]
[360944640,1747159876467,-576.56,0.0001178,2]
[360944641,1747159876475,-321.27252016,0.0001178,2]
[360944642,1747159876485,-400.0,0.0001178,2]
[360944643,1747159876494,-400.0,0.0001178,2]
[360944644,1747159876503,-400.0,0.0001178,2]
[360944645,1747159876512,-151.0,0.0001178,2]
[360944646,1747159876522,-400.0,0.0001178,2]
[360944647,1747159876531,-529.13,0.0001178,2]
[360944648,1747159876540,-500.19,0.0001178,2]
[360944649,1747159876550,-1411.28,0.0001178,2]
[360944650,1747159876559,-400.0,0.0001178,2]
[360944651,1747159876568,-534.86,0.0001178,2]
[360944652,1747159876578,-445.9,0.0001178,2]
[360944653,1747159876588,-706.58,0.0001178,2]
[360944654,1747159876597,-1060.09,0.0001178,2]
[360944655,1747159876606,-440.85,0.0001178,2]
[360944656,1747159876615,-400.0,0.0001178,2]
[360944657,1747159876625,-151.0,0.0001178,2]
[360944658,1747159876634,-235.7,0.0001178,2]
[360944659,1747159876643,-258.46,0.0001178,2]
[360944660,1747159876653,-400.0,0.0001178,2]
[360944661,1747159876662,-785.11,0.0001178,2]
[360944662,1747159876670,-782.86,0.0001178,2]
[360944663,1747159876679,-508.12,0.0001178,2]
[360944664,1747159876688,-792.31,0.0001178,2]
[360944665,1747159876697,-425.09248279,0.0001178,2]
[360944666,1747159876706,-507.26,0.0001178,2]
[360944667,1747159876715,-1373.03,0.0001178,2]
[360944668,1747159876725,-400.0,0.0001178,2]
[360944669,1747159876735,-295.994627,0.0001178,2]
[360944670,1747159876745,-400.0,0.0001178,2]
[360944671,1747159876754,-439.37,0.0001178,2]
[360944672,1747159876764,-151.0,0.0001178,2]
[360944673,1747159876774,-400.0,0.0001178,2]
[360944674,1747159876784,-835.87,0.0001178,2]
[360944675,1747159876794,-400.0,0.0001178,2]
[360944676,1747159876804,-1203.29,0.0001178,2]
[360944677,1747159876814,-400.0,0.0001178,2]
[360944678,1747159876823,-705.65,0.0001178,2]
[360944679,1747159876832,-871.93,0.0001178,2]
[360944680,1747159876841,-400.0,0.0001178,2]
[360944681,1747159876851,-320.542234,0.0001178,2]
[360944682,1747159876861,-400.0,0.0001178,2]
[360944683,1747159876871,-786.26,0.0001178,2]
[360944684,1747159876881,-320.542234,0.0001178,2]
[360944685,1747159876891,-801.16,0.0001178,2]
[360944686,1747159876901,-151.0,0.0001178,2]
[360944687,1747159876911,-151.0,0.0001178,2]
[360944688,1747159876921,-151.0,0.0001178,2]
[360944689,1747159876930,-1841.1,0.0001178,2]
[360944690,1747159876940,-522.01,0.0001178,2]
[360944691,1747159876950,-400.0,0.0001178,2]
[360944692,1747159876962,-952.91,0.0001178,2]
[360944693,1747159876972,-400.0,0.0001178,2]
[360944694,1747159876982,-589.31,0.0001178,2]
[360944695,1747159876991,-440.12,0.0001178,2]
[360944696,1747159877001,-689.79,0.0001178,2]
[360944697,1747159877011,-1040.35,0.0001178,2]
[360944698,1747159877022,-400.0,0.0001178,2]
[360944699,1747159877031,-400.0,0.0001178,2]
[360944700,1747159877042,-2832.85,0.0001178,2]
[360944701,1747159877051,-400.0,0.0001178,2]
[360944702,1747159877061,-722.75,0.0001178,2]
[360944703,1747159877071,-837.08,0.0001178,2]
[360944704,1747159877081,-418.45,0.0001178,2]
[360944705,1747159877091,-400.0,0.0001178,2]
[360944706,1747159877100,-1518.61,0.0001178,2]
[360944707,1747159877111,-538.57,0.0001178,2]
[360944708,1747159877121,-2035.72,0.0001178,2]
[360944709,1747159877130,-452.37,0.0001178,2]
[360944710,1747159877140,-400.0,0.0001178,2]
[360944711,1747159877150,-504.22,0.0001178,2]
[360944712,1747159877165,-699.02,0.0001178,2]
[360944713,1747159877175,-1636.63,0.0001178,2]
[360944714,1747159877185,-400.0,0.0001178,2]
[360944715,1747159877195,-494.98,0.0001178,2]
[360944716,1747159877206,-1883.29,0.0001178,2]
[360944717,1747159877218,-400.0,0.0001178,2]
[360944718,1747159877228,-1200.453301,0.0001178,2]
[360944719,1747159877238,-2000.0,0.0001178,2]
[360944720,1747159877247,-1200.453301,0.0001178,2]
[360944721,1747159877256,-400.0,0.0001178,2]
[360944722,1747159877266,-610.23,0.0001178,2]
[360944723,1747159877276,-768.25,0.0001178,2]
[360944724,1747159877286,-768.75,0.0001178,2]
[360944725,1747159877296,-1014.11,0.0001178,2]
[360944726,1747159877306,-400.0,0.0001178,2]
[360944727,1747159877316,-620.02,0.0001178,2]
[360944728,1747159877326,-1271.95,0.0001178,2]
[360944729,1747159877336,-400.0,0.0001178,2]
[360944730,1747159877346,-400.0,0.0001178,2]
[360944731,1747159877356,-756.59,0.0001178,2]
[360944732,1747159877366,-151.0,0.0001178,2]
[360944733,1747159877376,-400.0,0.0001178,2]
[360944734,1747159877387,-935.97,0.0001178,2]
[360944735,1747159877397,-400.0,0.0001178,2]
[360944736,1747159877407,-1412.1,0.0001178,2]
[360944737,1747159877417,-539.94,0.0001178,2]
[360944738,1747159877427,-1632.7,0.0001178,2]
[360944739,1747159877437,-151.0,0.0001178,2]
[360944740,1747159877448,-400.0,0.0001178,2]
[360944741,1747159877460,-871.79,0.0001178,2]
[360944742,1747159877471,-451.47,0.0001178,2]
[360944743,1747159877481,-400.0,0.0001178,2]
[360944744,1747159877490,-560.27,0.0001178,2]
[360944745,1747159877500,-400.0,0.0001178,2]
[360944746,1747159877511,-400.0,0.0001178,2]
[360944747,1747159877520,-2068.68,0.0001178,2]
[360944748,1747159877532,-400.0,0.0001178,2]
[360944749,1747159877541,-570.27,0.0001178,2]
[360944750,1747159877551,-444.85,0.0001178,2]
[360944751,1747159877561,-967.47,0.0001178,2]
[360944752,1747159877571,-400.0,0.0001178,2]
[360944753,1747159877580,-669.93,0.0001178,2]
[360944754,1747159877590,-1036.32,0.0001178,2]
[360944755,1747159877599,-400.0,0.0001178,2]
[360944756,1747159877609,-680.61,0.0001178,2]
[360944757,1747159877619,-4665.34,0.0001178,2]
[360944758,1747159877629,-400.0,0.0001178,2]
[360944759,1747159877639,-1314.16,0.0001178,2]
[360944760,1747159877649,-4183.88,0.0001178,2]
[360944761,1747159877659,-471.81610858,0.0001178,2]
[360944762,1747159877669,-400.0,0.0001178,2]
[360944763,1747159877679,-786.38,0.0001178,2]
[360944764,1747159877689,-400.0,0.0001178,2]
[360944765,1747159877700,-547.25,0.0001178,2]
[360944766,1747159877712,-579.54,0.0001178,2]
[360944767,1747159877722,-2046.23,0.0001178,2]
[360944768,1747159877731,-1255.33,0.0001178,2]
[360944769,1747159877741,-577.34,0.0001178,2]
[360944770,1747159877750,-9519.31,0.0001178,2]
[360944771,1747159877760,-834.73,0.0001178,2]
[360944772,1747159877770,-400.0,0.0001178,2]
[360944773,1747159877780,-400.0,0.0001178,2]
[360944774,1747159877790,-1346.7,0.0001178,2]
[360944775,1747159877800,-2754.3,0.0001178,2]
[360944776,1747159877809,-10256.28,0.0001178,2]
[360944777,1747159877819,-487.25,0.0001178,2]
[360944778,1747159877828,-400.0,0.0001178,2]
[360944779,1747159877838,-400.0,0.0001178,2]
[360944780,1747159877848,-400.0,0.0001178,2]
[360944781,1747159877857,-2145.85,0.0001178,2]
[360944782,1747159877867,-778.75,0.0001178,2]
[360944783,1747159877877,-1086.29,0.0001178,2]
[360944784,1747159877887,-712.61,0.0001178,2]
[360944785,1747159877898,-400.0,0.0001178,2]
[360944786,1747159877908,-1146.85,0.0001178,2]
[360944787,1747159877918,-400.0,0.0001178,2]
[360944788,1747159877928,-427.04,0.0001178,2]
[360944789,1747159877938,-1787.73,0.0001178,2]
[360944790,1747159877948,-587.09,0.0001178,2]
[360944791,1747159877960,-151.0,0.0001178,2]
[360944792,1747159877970,-400.0,0.0001178,2]
[360944793,1747159877980,-2676.84,0.0001178,2]
[360944794,1747159878164,-936.8,0.0001178,2]
[360944795,1747159878212,-538.65,0.0001178,2]
[360944796,1747159878221,-570.54,0.0001178,2]
[360944797,1747159878231,-671.91,0.0001178,2]
[360944798,1747159878241,-400.0,0.0001178,2]
[360944799,1747159878251,-1004.59,0.0001178,2]
[360944800,1747159878261,-212.087228,0.0001178,2]
[360944801,1747159878271,-583.74,0.0001178,2]
[360944802,1747159878280,-444.91022247,0.0001178,2]
[360944803,1747159878290,-400.0,0.0001178,2]
[360944804,1747159878300,-212.087228,0.0001178,2]
[360944805,1747159878310,-628.15,0.0001178,2]
[360944806,1747159878320,-409.42,0.0001178,2]
[360944807,1747159878330,-400.0,0.0001178,2]
[360944808,1747159878340,-10626.02,0.0001178,2]
[360944809,1747159878351,-400.0,0.0001178,2]
[360944810,1747159878361,-515.12,0.0001178,2]
[360944811,1747159878371,-6049.69,0.0001178,2]
[360944812,1747159878381,-1033.11,0.0001178,2]
[360944813,1747159878390,-400.0,0.0001178,2]
[360944814,1747159878400,-183.60867423,0.0001178,2]
[360944815,1747159878409,-437.19,0.0001178,2]
[360944816,1747159878419,-569.55,0.0001178,2]
[360944817,1747159878430,-467.47,0.0001178,2]
[360944818,1747159878439,-2264.96,0.0001178,2]
[360944819,1747159878449,-795.31,0.0001178,2]
[360944820,1747159878460,-400.0,0.0001178,2]
[360944821,1747159878469,-405.13,0.0001178,2]
[360944822,1747159878478,-1277.12,0.0001178,2]
[360944823,1747159878488,-400.0,0.0001178,2]
[360944824,1747159878497,-1585.22,0.0001178,2]
[360944825,1747159878507,-400.0,0.0001178,2]
[360944826,1747159878516,-400.0,0.0001178,2]
[360944827,1747159878526,-10483.18,0.0001178,2]
[360944828,1747159878535,-400.0,0.0001178,2]
[360944829,1747159878545,-843.23,0.0001178,2]
[360944830,1747159878554,-1106.58,0.0001178,2]
[360944831,1747159878563,-400.0,0.0001178,2]
[360944832,1747159878573,-413.28,0.0001178,2]
[360944833,1747159878583,-400.0,0.0001178,2]
[360944834,1747159878592,-400.0,0.0001178,2]
[360944835,1747159878602,-1973.13,0.0001178,2]
[360944836,1747159878611,-400.0,0.0001178,2]
[360944837,1747159878621,-400.0,0.0001178,2]
[360944838,1747159878631,-565.33,0.0001178,2]
[360944839,1747159878640,-1087.57,0.0001178,2]
[360944840,1747159878650,-400.0,0.0001178,2]
[360944841,1747159878660,-2020.68,0.0001178,2]
[360944842,1747159878669,-400.0,0.0001178,2]
[360944843,1747159878679,-400.0,0.0001178,2]
[360944844,1747159878688,-686.06,0.0001178,2]
[360944845,1747159878698,-400.0,0.0001178,2]
[360944846,1747159878709,-400.0,0.0001178,2]
[360944847,1747159878719,-400.0,0.0001178,2]
[360944848,1747159878729,-2493.43,0.0001178,2]
[360944849,1747159878739,-483.53,0.0001178,2]
[360944850,1747159878748,-400.0,0.0001178,2]
[360944851,1747159878758,-400.0,0.0001178,2]
[360944852,1747159878767,-523.64,0.0001178,2]
[360944853,1747159878776,-2179.19,0.0001178,2]
[360944854,1747159878787,-933.31,0.0001178,2]
[360944855,1747159878797,-1454.44,0.0001178,2]
[360944856,1747159878806,-495.63,0.0001178,2]
[360944857,1747159878816,-448.16,0.0001178,2]
[360944858,1747159878826,-669.67,0.0001178,2]
[360944859,1747159878836,-407.59,0.0001178,2]
[360944860,1747159878845,-2557.8,0.0001178,2]
[360944861,1747159878855,-733.19,0.0001178,2]
[360944862,1747159878865,-1323.75,0.0001178,2]
[360944863,1747159878875,-1387.03,0.0001178,2]
[360944864,1747159878885,-101544.96,0.0001178,2]
[360944865,1747159878895,-639.94,0.0001178,2]
[360944866,1747159878904,-1956.5,0.0001178,2]
[360944867,1747159878914,-400.0,0.0001178,2]
[360944868,1747159878924,-400.0,0.0001178,2]
[360944869,1747159878934,-447.02,0.0001178,2]
[360944870,1747159878944,-400.0,0.0001178,2]
[360944871,1747159878953,-400.0,0.0001178,2]
[360944872,1747159878965,-400.0,0.0001178,2]
[360944873,1747159878975,-2181.62,0.0001178,2]
[360944874,1747159878986,-707.87,0.0001178,2]
[360944875,1747159878997,-946.15,0.0001178,2]
[360944876,1747159879007,-809.14,0.0001178,2]
[360944877,1747159879016,-676.8,0.0001178,2]
[360944878,1747159879026,-492.65,0.0001178,2]
[360944879,1747159879036,-637.14,0.0001178,2]
[360944880,1747159879046,-400.0,0.0001178,2]
[360944881,1747159879055,-151.0,0.00011814,2]
[360944882,1747159879065,-151.0,0.00011815,2]
[360944883,1747159879075,-151.0,0.00011815,2]
[360944884,1747159879084,-151.0,0.00011815,2]
[360944885,1747159879093,-151.0,0.00011815,2]
[360944886,1747159879103,-3380.65519,0.00011815,2]
[360944887,1747159879113,-3380.65519,0.00011815,2]
[360944888,1747159879123,-649.911468,0.00011815,2]
[360944889,1747159879133,-649.911468,0.00011815,2]
[360944890,1747159879143,-151.0,0.00011815,2]
[360944891,1747159879152,-4071.95,0.00011815,2]
[360944892,1747159879165,-151.0,0.000119,2]
[360944893,1747159879175,-9936.43631597,0.000119,2]
[360944894,1747159879184,-9936.43631574,0.000119,2]
[360944895,1747159879193,-9936.43631574,0.000119,2]
[360944896,1747159879205,-9936.43631574,0.000119,2]
[360944897,1747159879217,-9936.43631574,0.000119,2]
[360944898,1747159879227,-9936.43631574,0.000119,2]
[360944899,1747159879240,-9936.43631574,0.000119,2]
[360944900,1747159879250,-9936.43631574,0.000119,2]
[360944901,1747159879261,-9936.43631574,0.000119,2]
[360944902,1747159879271,-9936.43631574,0.000119,2]
[360944903,1747159879280,-9936.43631574,0.000119,2]
[360944904,1747159879290,-9936.43631574,0.000119,2]
[360944905,1747159879300,-9936.43631574,0.000119,2]
[360944906,1747159879309,-9936.43631574,0.000119,2]
[360944907,1747159879319,-9936.43631574,0.000119,2]
[360944908,1747159879328,-9936.43631574,0.000119,2]
[360944909,1747159879338,-9936.43631574,0.000119,2]
[360944910,1747159879348,-9936.43631574,0.000119,2]
[360944911,1747159879358,-9936.43631574,0.000119,2]
[360944912,1747159879368,-9936.43631574,0.000119,2]
[360944913,1747159879378,-9936.43631574,0.000119,2]
[360944914,1747159879387,-9936.43631574,0.000119,2]
[360944915,1747159879397,-9936.43631574,0.000119,2]
[360944916,1747159879406,-9936.43631574,0.000119,2]
[360944917,1747159879415,-9936.43631574,0.000119,2]
[360944918,1747159879425,-9936.43631574,0.000119,2]
[360944919,1747159879435,-9936.43631574,0.000119,2]
[360944920,1747159879445,-9936.43631574,0.000119,2]
[360944921,1747159879454,-9936.43631574,0.000119,2]
[360944922,1747159879465,-9936.43631574,0.000119,2]
[360944923,1747159879474,-419.410568,0.000119,2]
[360944924,1747159879484,-578.0,0.00011945,2]
[360944925,1747159879494,-150.0,0.00011969,2]
[360944926,1747159879503,-1000.0,0.00011989,2]
[360944927,1747159879514,-162.81,0.00011995,2]
[360944928,1747159879523,-309.0,0.00012,2]
[360944929,1747159879533,-4999.99999602,0.00012,2]
[360944930,1747159879544,-72855.0,0.00012,2]
[360944931,1747159879554,-152.537226,0.00012,2]
[360944932,1747159879564,-151.0,0.00012,2]
[360944933,1747159879573,-151.0,0.00012,2]
[360944934,1747159879583,-200.0,0.00012,2]
[360944935,1747159879592,-150.0,0.00012005,2]
[360944936,1747159879602,-151.0,0.00012046,2]
[360944937,1747159879612,-151.0,0.00012046,2]
[360944938,1747159879621,-151.0,0.00012046,2]
[360944939,1747159879630,-151.0,0.00012046,2]
[360944940,1747159879640,-2351.0,0.00012053,2]
[360944941,1747159879650,-400.0,0.00012054,2]
[360944942,1747159879660,-2722.32,0.00012054,2]
[360944943,1747159879670,-151.0,0.00012054,2]
[360944944,1747159879680,-151.0,0.00012054,2]
[360944945,1747159879690,-151.0,0.00012054,2]
[360944946,1747159879700,-151.0,0.00012054,2]
[360944947,1747159879710,-151.0,0.00012054,2]
[360944948,1747159879720,-151.0,0.00012054,2]
[360944949,1747159879729,-916.93,0.00012054,2]
[360944950,1747159879740,-520.78,0.00012054,2]
[360944951,1747159879751,-506.41,0.00012054,2]
[360944952,1747159879761,-694.78,0.00012054,2]
[360944953,1747159879771,-400.0,0.00012054,2]
[360944954,1747159879782,-400.0,0.00012054,2]
[360944955,1747159879792,-400.0,0.00012054,2]
[360944956,1747159879802,-400.0,0.00012054,2]
[360944957,1747159879811,-462.74205827,0.00012054,2]
[360944958,1747159879822,-400.0,0.00012054,2]
[360944959,1747159879832,-400.0,0.00012054,2]
[360944960,1747159879841,-400.0,0.00012054,2]
[360944961,1747159879851,-400.0,0.00012054,2]
[360944962,1747159879861,-626.45,0.00012054,2]
[360944963,1747159879870,-400.0,0.00012054,2]
[360944964,1747159879880,-626.11,0.00012054,2]
[360944965,1747159879890,-400.0,0.00012054,2]
[360944966,1747159879899,-400.0,0.00012054,2]
[360944967,1747159879908,-463.34,0.00012054,2]
[360944968,1747159879918,-488.25,0.00012054,2]
[360944969,1747159879928,-400.0,0.00012054,2]
[360944970,1747159879938,-400.0,0.00012054,2]
[360944971,1747159879947,-528.73595381,0.00012054,2]
[360944972,1747159879957,-400.0,0.00012054,2]
[360944973,1747159879967,-400.0,0.00012054,2]
[360944974,1747159879977,-400.0,0.00012054,2]
[360944975,1747159879987,-400.0,0.00012054,2]
[360944976,1747159879996,-394.63654,0.00012054,2]
[360944977,1747159880006,-657.34,0.00012054,2]
[360944978,1747159880016,-400.0,0.00012054,2]
[360944979,1747159880027,-394.63654,0.00012054,2]
[360944980,1747159880037,-441.68,0.00012054,2]
[360944981,1747159880047,-400.0,0.00012054,2]
[360944982,1747159880056,-645.08,0.00012054,2]
[360944983,1747159880066,-400.0,0.00012054,2]
[360944984,1747159880075,-530.14,0.00012054,2]
[360944985,1747159880085,-400.0,0.00012054,2]
[360944986,1747159880094,-400.0,0.00012054,2]
[360944987,1747159880103,-546.50283956,0.00012054,2]
[360944988,1747159880113,-400.0,0.00012054,2]
[360944989,1747159880123,-400.0,0.00012054,2]
[360944990,1747159880133,-400.0,0.00012054,2]
[360944991,1747159880143,-852.22,0.00012054,2]
[360944992,1747159880153,-230.27969179,0.00012054,2]
[360944993,1747159880165,-400.0,0.00012054,2]
[360944994,1747159880175,-400.0,0.00012054,2]
[360944995,1747159880187,-400.0,0.00012054,2]
[360944996,1747159880198,-820.71,0.00012054,2]
[360944997,1747159880210,-400.0,0.00012054,2]
[360944998,1747159880221,-400.0,0.00012054,2]
[360944999,1747159880230,-400.0,0.00012054,2]
[360945000,1747159880241,-400.0,0.00012054,2]
[360945001,1747159880251,-400.0,0.00012054,2]
[360945002,1747159880260,-400.0,0.00012054,2]
[360945003,1747159880270,-400.0,0.00012054,2]
[360945004,1747159880279,-621.83,0.00012054,2]
[360945005,1747159880289,-400.0,0.00012054,2]
[360945006,1747159880298,-400.0,0.00012054,2]
[360945007,1747159880307,-400.0,0.00012054,2]
[360945008,1747159880316,-400.0,0.00012054,2]
[360945009,1747159880326,-478.47,0.00012054,2]
[360945010,1747159880336,-400.0,0.00012054,2]
[360945011,1747159880345,-404.78,0.00012054,2]
[360945012,1747159880354,-400.0,0.00012054,2]
[360945013,1747159880363,-400.0,0.00012054,2]
[360945014,1747159880372,-400.0,0.00012054,2]
[360945015,1747159880381,-400.0,0.00012054,2]
[360945016,1747159880391,-1162.05,0.00012054,2]
[360945017,1747159880400,-400.0,0.00012054,2]
[360945018,1747159880409,-1079.27,0.00012054,2]
[360945019,1747159880419,-577.59,0.00012054,2]
[360945020,1747159880429,-426.15,0.00012054,2]
[360945021,1747159880438,-400.0,0.00012054,2]
[360945022,1747159880448,-3487.68,0.00012054,2]
[360945023,1747159880457,-402.47863239,0.00012054,2]
[360945024,1747159880468,-151.0,0.00012054,2]
[360945025,1747159880478,-169.89388,0.00012054,2]
[360945026,1747159880487,-400.0,0.00012054,2]
[360945027,1747159880496,-400.0,0.00012054,2]
[360945028,1747159880506,-400.0,0.00012054,2]
[360945029,1747159880515,-400.0,0.00012054,2]
[360945030,1747159880525,-151.0,0.00012054,2]
[360945031,1747159880535,-169.89388,0.00012054,2]
[360945032,1747159880544,-400.0,0.00012054,2]
[360945033,1747159880554,-1738.21,0.00012054,2]
[360945034,1747159880563,-459.19,0.00012054,2]
[360945035,1747159880572,-302.552997,0.00012054,2]
[360945036,1747159880581,-151.0,0.00012054,2]
[360945037,1747159880591,-400.0,0.00012054,2]
[360945038,1747159880600,-444.36,0.00012054,2]
[360945039,1747159880609,-302.552997,0.00012054,2]
[360945040,1747159880619,-400.0,0.00012054,2]
[360945041,1747159880628,-400.0,0.00012054,2]
[360945042,1747159880710,-615.27,0.00012054,2]
[360945043,1747159880720,-400.0,0.00012054,2]
[360945044,1747159880729,-400.0,0.00012054,2]
[360945045,1747159880739,-420.8,0.00012054,2]
[360945046,1747159880748,-400.0,0.00012054,2]
[360945047,1747159880757,-1176.5,0.00012054,2]
[360945048,1747159880768,-1437.22,0.00012054,2]
[360945049,1747159880777,-400.0,0.00012054,2]
[360945050,1747159880786,-652.56,0.00012054,2]
[360945051,1747159880796,-488.24,0.00012054,2]
[360945052,1747159880805,-400.0,0.00012054,2]
[360945053,1747159880815,-1273.02,0.00012054,2]
[360945054,1747159880824,-400.0,0.00012054,2]
[360945055,1747159880834,-400.0,0.00012054,2]
[360945056,1747159880843,-801.33,0.00012054,2]
[360945057,1747159880853,-400.0,0.00012054,2]
[360945058,1747159880864,-400.0,0.00012054,2]
[360945059,1747159880873,-788.97,0.00012054,2]
[360945060,1747159880883,-542.34,0.00012054,2]
[360945061,1747159880893,-414.37,0.00012054,2]
[360945062,1747159880902,-508.73620009,0.00012054,2]
[360945063,1747159880913,-364.80203159,0.00012054,2]